lending/lending_fUSD_20260306
["ID","MTS","AMOUNT","RATE_DAILY","PERIOD"]
[407812982,1772814797277,-470.17734228,0.0004722,2]
[407812983,1772814797287,-150.0,0.0004722,2]
[407812984,1772814797297,-12905.65982003,0.0004722,2]
[407812985,1772814797307,-203.64232467,0.0004722,2]
[407812986,1772814797317,-758.17114011,0.0004722,2]
[407812987,1772814797326,-1373.57164542,0.0004722,2]
[407812988,1772814797336,-200.71358838,0.0004722,2]
[407812989,1772814797345,-1524.82153731,0.0004722,2]
[407812990,1772814797355,-466.46000425,0.0004722,2]
[407812991,1772814797365,-406.94077389,0.0004722,2]
[407812992,1772814797375,-229.0,0.0004722,10]
[407812993,1772814797385,-580.43614974,0.0004722,5]
[407812994,1772814797395,-734.74042953,0.0004722,10]
[407812995,1772814797406,-642.5612926,0.0004722,6]
[407812996,1772814797418,-420.59037178,0.0004722,7]
[407812997,1772814797429,-1011.34854122,0.0004722,15]
[407812998,1772814797440,-1029.98432818,0.0004722,20]
[407812999,1772814797451,-550.73687737,0.0004722,7]
[407813000,1772814797462,-425.80958545,0.0004722,7]
[407813001,1772814797472,-300.0,0.0004722,15]
[407813002,1772814797482,-1108.37400954,0.0004722,7]
[407813003,1772814797492,-1006.26865815,0.0004722,5]
[407813004,1772814797504,-600.0,0.0004722,5]
[407813005,1772814797771,-500.0,0.0004722,5]
[407813006,1772814797781,-1000.0,0.0004722,10]
[407813007,1772814797790,-500.0,0.0004722,10]
[407813008,1772814797800,-1074.48076062,0.0004722,7]
[407813009,1772814797810,-481.99076468,0.0004722,7]
[407813010,1772814797820,-235.5179882,0.0004722,14]
[407813011,1772814797831,-225.42215889,0.0004722,5]
[407813012,1772814797842,-234.19733471,0.0004722,15]
[407813013,1772814797853,-225.75931989,0.0004722,7]
[407813014,1772814797862,-626.94553215,0.0004722,7]
[407813015,1772814797872,-373.71690395,0.0004722,28]
[407813016,1772814797881,-1028.27801027,0.0004722,5]
[407813017,1772814797892,-150.0,0.0004722,14]
[407813018,1772814797902,-503.13346417,0.0004722,5]
[407813019,1772814797912,-20000.0,0.0004722,2]
[407813020,1772814797923,-1575883.77532003,0.0004722,20]
[407813021,1772814797935,-11123.89483636,0.0004722,20]
[407813022,1772814797944,-206256.45116284,0.0004722,2]
[407813023,1772814797954,-220829.25376054,0.0004722,2]
[407813024,1772814797965,-812096.43476789,0.0004722,2]
[407813025,1772814797975,-160.11,0.0004722,2]
[407813026,1772814797984,-19521.35531139,0.0004722,20]
[407813027,1772814797994,-4897.67737014,0.0004722,2]
[407813028,1772814798004,-4000.0,0.0004722,2]
[407813029,1772814798015,-28287.44122712,0.0004722,2]
[407813030,1772814798024,-869.98061235,0.0004722,21]
[407813031,1772814798034,-1213.16128584,0.0004722,2]
[407813032,1772814798044,-3195.79827497,0.0004722,2]
[407813033,1772814798054,-2042.97922509,0.0004722,5]
[407813034,1772814798063,-2433.3898525,0.0004722,14]
[407813035,1772814798073,-10074.87469655,0.0004722,7]
[407813036,1772814798083,-19655.17692569,0.0004722,5]
[407813037,1772814798092,-8300.0,0.0004722,7]
[407813038,1772814798102,-1113.81812267,0.0004722,5]
[407813039,1772814798111,-3077.47398312,0.0004722,5]
[407813040,1772814798120,-6373.99181113,0.0004722,120]
[407813041,1772814798130,-10031.297714,0.0004722,7]
[407813042,1772814798139,-200.0,0.0004722,120]
[407813043,1772814798148,-200.0,0.0004722,120]
[407813044,1772814798158,-200.0,0.0004722,120]
[407813045,1772814798167,-200.0,0.0004722,120]
[407813046,1772814798176,-200.0,0.0004722,120]
[407813047,1772814798185,-200.0,0.0004722,120]
[407813048,1772814798195,-200.0,0.0004722,120]
[407813049,1772814798203,-2774.76364994,0.0004722,120]
[407813050,1772814798213,-200.0,0.0004722,120]
[407813051,1772814798222,-200.0,0.0004722,120]
[407813052,1772814798232,-200.0,0.0004722,120]
[407813053,1772814798242,-200.0,0.0004722,120]
[407813054,1772814798251,-200.0,0.0004722,120]
[407813055,1772814798260,-200.0,0.0004722,120]
[407813056,1772814798269,-200.0,0.0004722,120]
[407813057,1772814798279,-262.85719008,0.0004722,120]
[407813058,1772814798289,-49999.999999,0.0004722,30]
[407813059,1772814798298,-3405.71,0.0004722,120]
[407813060,1772814798308,-3405.71,0.0004722,120]
[407813061,1772814798317,-3405.71,0.0004722,120]
[407813062,1772814798327,-3405.71,0.0004722,120]
[407813063,1772814798336,-3405.71,0.0004722,120]
[407813064,1772814798345,-3405.71,0.0004722,120]
[407813065,1772814798354,-3405.71,0.0004722,120]
[407813066,1772814798364,-3405.71,0.0004722,120]
[407813067,1772814798373,-3405.71,0.0004722,120]
[407813068,1772814798384,-3405.71,0.0004722,120]
[407813069,1772814798395,-3405.71,0.0004722,120]
[407813070,1772814798406,-3405.71,0.0004722,120]
[407813071,1772814798417,-3405.71,0.0004722,120]
[407813072,1772814798428,-3405.71,0.0004722,120]
[407813073,1772814798439,-3405.71,0.0004722,120]
[407813074,1772814798448,-3405.71,0.0004722,120]
[407813075,1772814798459,-3405.71,0.0004722,120]
[407813076,1772814798470,-3405.71,0.0004722,120]
[407813077,1772814798480,-3405.71,0.0004722,120]
[407813078,1772814798491,-3405.71,0.0004722,120]
[407813079,1772814798500,-3405.71,0.0004722,120]
[407813080,1772814798510,-3405.71,0.0004722,120]
[407813081,1772814798519,-3405.71,0.0004722,120]
[407813082,1772814798529,-3405.83,0.0004722,120]
[407813083,1772814798538,-2320.29059852,0.0004722,120]
[407813084,1772814798547,-156.11,0.0004722,120]
[407813085,1772814798556,-156.11,0.0004722,120]
[407813086,1772814798565,-4627.08719133,0.0004722,120]
[407813087,1772814798575,-500.0,0.0004722,98]
[407813088,1772814798584,-500.0,0.0004722,98]
[407813089,1772814798595,-500.0,0.0004722,98]
[407813090,1772814798606,-500.0,0.0004722,98]
[407813091,1772814798616,-500.0,0.0004722,98]
[407813092,1772814798626,-500.0,0.0004722,98]
[407813093,1772814798635,-500.0,0.0004722,98]
[407813094,1772814798646,-500.0,0.0004722,98]
[407813095,1772814798657,-500.0,0.0004722,98]
[407813096,1772814798669,-500.0,0.0004722,98]
[407813097,1772814798681,-500.0,0.0004722,98]
[407813098,1772814798695,-500.0,0.0004722,98]
[407813099,1772814798704,-500.0,0.0004722,98]
[407813100,1772814798713,-555.60042634,0.0004722,98]
[407813101,1772814798724,-1149.4939407,0.0004722,120]
[407813102,1772814798733,-1000.0,0.0004722,30]
[407813103,1772814798743,-1000.0,0.0004722,30]
[407813104,1772814798755,-1000.0,0.0004722,30]
[407813105,1772814798765,-1000.0,0.0004722,30]
[407813106,1772814798775,-1000.0,0.0004722,30]
[407813107,1772814798785,-1000.0,0.0004722,60]
[407813108,1772814798794,-500.0,0.0004722,120]
[407813109,1772814798804,-225.0,0.0004722,120]
[407813110,1772814798813,-1000.0,0.0004722,30]
[407813111,1772814798823,-327.38659243,0.0004722,120]
[407813112,1772814798832,-1000.0,0.0004722,60]
[407813113,1772814798842,-3643.0,0.0004722,30]
[407813114,1772814798852,-1000.0,0.0004722,60]
[407813115,1772814798861,-1000.0,0.0004722,60]
[407813116,1772814798871,-211.53306109,0.0004722,30]
[407813117,1772814798880,-1000.0,0.0004722,60]
[407813118,1772814798890,-1000.0,0.0004722,30]
[407813119,1772814798899,-1000.0,0.0004722,30]
[407813120,1772814798910,-1000.0,0.0004722,30]
[407813121,1772814798919,-568.21092958,0.0004722,60]
[407813122,1772814798928,-1000.0,0.0004722,60]
[407813123,1772814798938,-800.0,0.0004722,31]
[407813124,1772814798947,-800.0,0.0004722,31]
[407813125,1772814798957,-800.0,0.0004722,31]
[407813126,1772814798967,-800.0,0.0004722,31]
[407813127,1772814798976,-800.0,0.0004722,31]
[407813128,1772814798985,-800.0,0.0004722,31]
[407813129,1772814798995,-800.0,0.0004722,31]
[407813130,1772814799003,-800.0,0.0004722,31]
[407813131,1772814799012,-800.0,0.0004722,31]
[407813132,1772814799022,-1000.0,0.0004722,120]
[407813133,1772814799031,-800.0,0.0004722,31]
[407813134,1772814799040,-800.0,0.0004722,31]
[407813135,1772814799049,-800.0,0.0004722,31]
[407813136,1772814799059,-800.0,0.0004722,31]
[407813137,1772814799068,-800.0,0.0004722,31]
[407813138,1772814799078,-800.0,0.0004722,31]
[407813139,1772814799088,-800.0,0.0004722,31]
[407813140,1772814799097,-800.0,0.0004722,31]
[407813141,1772814799107,-800.0,0.0004722,31]
[407813142,1772814799116,-800.0,0.0004722,31]
[407813143,1772814799125,-800.0,0.0004722,31]
[407813144,1772814799135,-800.0,0.0004722,31]
[407813145,1772814799144,-800.0,0.0004722,31]
[407813146,1772814799153,-800.0,0.0004722,31]
[407813147,1772814799163,-800.0,0.0004722,31]
[407813148,1772814799172,-800.0,0.0004722,31]
[407813149,1772814799183,-800.0,0.0004722,31]
[407813150,1772814799192,-800.0,0.0004722,31]
[407813151,1772814799202,-800.0,0.0004722,31]
[407813152,1772814799213,-800.0,0.0004722,31]
[407813153,1772814799223,-800.0,0.0004722,31]
[407813154,1772814799232,-800.0,0.0004722,31]
[407813155,1772814799242,-800.0,0.0004722,31]
[407813156,1772814799251,-800.0,0.0004722,31]
[407813157,1772814799260,-800.0,0.0004722,31]
[407813158,1772814799269,-800.0,0.0004722,31]
[407813159,1772814799279,-800.0,0.0004722,31]
[407813160,1772814799288,-800.0,0.0004722,31]
[407813161,1772814799298,-800.0,0.0004722,31]
[407813162,1772814799307,-800.0,0.0004722,31]
[407813163,1772814799316,-1000.0,0.0004722,30]
[407813164,1772814799326,-1000.0,0.0004722,30]
[407813165,1772814799335,-1006.97039094,0.0004722,30]
[407813166,1772814799344,-1028.93734,0.0004722,60]
[407813167,1772814799354,-153.10392,0.0004722,60]
[407813168,1772814799363,-1028.93734,0.0004722,60]
[407813169,1772814799372,-800.0,0.0004722,31]
[407813170,1772814799381,-1028.93734,0.0004722,60]
[407813171,1772814799391,-800.0,0.0004722,31]
[407813172,1772814799400,-153.10392,0.0004722,60]
[407813173,1772814799410,-1028.93734,0.0004722,60]
[407813174,1772814799419,-800.0,0.0004722,31]
[407813175,1772814799429,-153.10392,0.0004722,60]
[407813176,1772814799438,-800.0,0.0004722,31]
[407813177,1772814799448,-1028.93734,0.0004722,60]
[407813178,1772814799457,-800.0,0.0004722,31]
[407813179,1772814799466,-800.0,0.0004722,31]
[407813180,1772814799475,-800.0,0.0004722,31]
[407813181,1772814799485,-800.0,0.0004722,31]
[407813182,1772814799495,-800.0,0.0004722,31]
[407813183,1772814799504,-1000.0,0.0004722,30]
[407813184,1772814799513,-170.47,0.0004722,120]
[407813185,1772814799522,-170.47,0.0004722,120]
[407813186,1772814799531,-170.47,0.0004722,120]
[407813187,1772814799540,-170.46,0.0004722,120]
[407813188,1772814799550,-1000.0,0.0004722,60]
[407813189,1772814799559,-13166.88000001,0.0004722,120]
[407813190,1772814799569,-500.0,0.0004722,97]
[407813191,1772814799579,-500.0,0.0004722,97]
[407813192,1772814799590,-500.0,0.0004722,97]
[407813193,1772814799599,-500.0,0.0004722,97]
[407813194,1772814799609,-500.0,0.0004722,97]
[407813195,1772814799618,-174.40437893,0.0004722,97]
[407813196,1772814799627,-2187.62846681,0.0004722,120]
[407813197,1772814799636,-5000.0,0.0004722,37]
[407813198,1772814799645,-50000.0,0.0004722,33]
[407813199,1772814799654,-50000.0,0.0004722,37]
[407813200,1772814799663,-50000.0,0.0004722,38]
[407813201,1772814799672,-50000.0,0.0004722,39]
[407813202,1772814799683,-50000.0,0.0004722,42]
[407813203,1772814799695,-50000.0,0.0004722,44]
[407813204,1772814799704,-50000.0,0.0004722,45]
[407813205,1772814799714,-50000.0,0.0004722,46]
[407813206,1772814799724,-168.85844077,0.0004722,30]
[407813207,1772814799733,-422.798526,0.0004722,90]
[407813208,1772814799742,-3320.91,0.0004722,120]
[407813209,1772814799751,-284.25981756,0.0004722,30]
[407813210,1772814799761,-217.95024639,0.0004722,66]
[407813211,1772814799770,-402.0,0.0004722,120]
[407813212,1772814799779,-244.48455255,0.0004722,120]
[407813213,1772814799788,-217.37904529,0.0004722,120]
[407813214,1772814799798,-2500.0,0.0004722,120]
[407813215,1772814799807,-400000.0,0.0004722,7]
[407813216,1772814799817,-159.70218079,0.0004722,120]
[407813217,1772814799826,-2254.1163744,0.0004722,7]
[407813218,1772814799836,-12742.90835748,0.0004722,30]
[407813219,1772814799845,-8419.05178733,0.0004722,30]
[407813220,1772814799855,-15000.0,0.0004722,120]
[407813221,1772814799864,-5269.59905747,0.0004722,90]
[407813222,1772814799874,-613.54997126,0.0004722,120]
[407813223,1772814799887,-248.87337907,0.0004722,30]
[407813224,1772814799897,-1351.95832991,0.0004722,30]
[407813225,1772814799907,-336.43688929,0.0004722,30]
[407813226,1772814799916,-548.68941508,0.0004722,30]
[407813227,1772814799925,-4999.999997,0.0004722,32]
[407813228,1772814799935,-410.2367352,0.0004722,30]
[407813229,1772814799945,-953.50030084,0.0004722,91]
[407813230,1772814799956,-1338.54590716,0.0004722,60]
[407813231,1772814799965,-945.14219291,0.0004722,30]
[407813232,1772814799975,-329.38877977,0.0004722,30]
[407813233,1772814799984,-447.06326254,0.0004722,120]
[407813234,1772814799995,-1185.61880289,0.0004722,120]
[407813235,1772814800004,-605.39203819,0.0004722,120]
[407813236,1772814800140,-797.3965552,0.0004722,30]
[407813237,1772814800150,-712.13839081,0.0004722,120]
[407813238,1772814800160,-1053.43081077,0.0004722,30]
[407813239,1772814800170,-462.72966011,0.0004722,120]
[407813240,1772814800179,-1294.97385861,0.0004722,30]
[407813241,1772814800189,-211.26836067,0.0004722,120]
[407813242,1772814800198,-2046.82539463,0.0004722,30]
[407813243,1772814800209,-8980.08357348,0.0004722,30]
[407813244,1772814800219,-195.57677515,0.0004722,120]
[407813245,1772814800232,-483.5671724,0.0004722,30]
[407813246,1772814800242,-1085.67897947,0.0004722,120]
[407813247,1772814800252,-940.48343733,0.0004722,120]
[407813248,1772814800261,-775.69602932,0.0004722,120]
[407813249,1772814800271,-1094.10361228,0.0004722,120]
[407813250,1772814800280,-928.86725323,0.0004722,120]
[407813251,1772814800289,-795.37270291,0.0004722,120]
[407813252,1772814800300,-925.55222357,0.0004722,30]
[407813253,1772814800310,-724.20067254,0.0004722,30]
[407813254,1772814800319,-934.59794285,0.0004722,30]
[407813255,1772814800328,-192.59006489,0.0004722,120]
[407813256,1772814800338,-386.06935488,0.0004722,30]
[407813257,1772814800348,-263.03519978,0.0004722,90]
[407813258,1772814800357,-636.80578392,0.0004722,120]
[407813259,1772814800367,-486.37324671,0.0004722,120]
[407813260,1772814800376,-339.76922024,0.0004722,120]
[407813261,1772814800387,-173.46558038,0.0004722,120]
[407813262,1772814800397,-1007.14999876,0.0004722,30]
[407813263,1772814800407,-1072.26318879,0.0004722,60]
[407813264,1772814800417,-381.36432003,0.0004722,120]
[407813265,1772814800428,-322.26708951,0.0004722,120]
[407813266,1772814800438,-369.60429323,0.0004722,30]
[407813267,1772814800448,-223.48163604,0.0004722,30]
[407813268,1772814800466,-483.8155821,0.0004722,60]
[407813269,1772814800477,-1040.77091829,0.0004722,30]
[407813270,1772814800487,-841.24221071,0.0004722,120]
[407813271,1772814800497,-50000.0,0.0004722,47]
[407813272,1772814800507,-194.7660854,0.0004722,120]
[407813273,1772814800517,-50000.0,0.0004722,48]
[407813274,1772814800527,-663.59965761,0.0004722,120]
[407813275,1772814800538,-4571.70572654,0.0004722,30]
[407813276,1772814800547,-6248.44046955,0.0004722,30]
[407813277,1772814801741,-525.38502251,0.0004722,30]
[407813278,1772814801754,-1042.42667211,0.0004722,120]
[407813279,1772814801766,-156.54295114,0.0004722,120]
[407813280,1772814801778,-977.03649633,0.0004722,120]
[407813281,1772814801788,-378.14570206,0.0004722,30]
[407813282,1772814801798,-25273.36534583,0.0004722,49]
[407813283,1772814801863,-24726.63465417,0.0004722,49]
[407813284,1772814801872,-394.59089809,0.0004722,30]
[407813285,1772814801882,-506.14641292,0.0004722,120]
[407813286,1772814801902,-779.00011137,0.0004722,120]
[407813287,1772814801915,-727.95459287,0.0004722,30]
[407813288,1772814801924,-444.83960702,0.0004722,120]
[407813289,1772814801933,-814.73853598,0.0004722,120]
[407813290,1772814801942,-570.68798452,0.0004722,120]
[407813291,1772814801952,-958.16634164,0.0004722,30]
[407813292,1772814801963,-5648.23649345,0.0004722,30]
[407813293,1772814801973,-620.01167722,0.0004722,120]
[407813294,1772814801982,-1334.13555945,0.0004722,60]
[407813295,1772814801991,-1095.5341423,0.0004722,30]
[407813296,1772814802000,-1185.20804676,0.0004722,120]
[407813297,1772814802010,-327.52134289,0.0004722,120]
[407813298,1772814802019,-217.10431962,0.0004722,120]
[407813299,1772814802028,-1000.24487267,0.0004722,120]
[407813300,1772814802037,-177.08030249,0.0004722,120]
[407813301,1772814802047,-562.4163572,0.0004722,120]
[407813302,1772814802057,-530.22899074,0.0004722,120]
[407813303,1772814802066,-706.90735292,0.0004722,120]
[407813304,1772814802076,-258.42704431,0.0004722,120]
[407813305,1772814802085,-476.76233014,0.0004722,30]
[407813306,1772814802095,-416.21936346,0.0004722,30]
[407813307,1772814802104,-928.53102512,0.0004722,120]
[407813308,1772814802113,-2173.37597304,0.0004722,30]
[407813309,1772814802122,-997.0,0.0004722,30]
[407813310,1772814802133,-330.46823396,0.0004722,120]
[407813311,1772814802143,-267.61940045,0.0004722,120]
[407813312,1772814802153,-255.64521526,0.0004722,30]
[407813313,1772814802164,-409.23611913,0.0004722,60]
[407813314,1772814802176,-177.27615136,0.0004722,120]
[407813315,1772814802187,-153.02456216,0.0004722,120]
[407813316,1772814802197,-772.76017704,0.0004722,30]
[407813317,1772814802210,-418.68244061,0.0004722,120]
[407813318,1772814802220,-169.75021164,0.0004722,30]
[407813319,1772814802230,-831.02982569,0.0004722,120]
[407813320,1772814802239,-840.22479996,0.0004722,120]
[407813321,1772814802249,-611.84332122,0.0004722,30]
[407813322,1772814802259,-956.23920092,0.0004722,30]
[407813323,1772814802268,-1167.69970511,0.0004722,120]
[407813324,1772814802278,-1276.31598722,0.0004722,30]
[407813325,1772814802290,-279.48349249,0.0004722,120]
[407813326,1772814802299,-43287.77688354,0.0004722,15]
[407813327,1772814802309,-691.42691442,0.0004722,120]
[407813328,1772814802320,-5848.34784307,0.0004722,30]
[407813329,1772814802330,-1105.99995083,0.0004722,120]
[407813330,1772814802339,-245.2974408,0.0004722,120]
[407813331,1772814802349,-610.75219166,0.0004722,120]
[407813332,1772814802360,-151.12094299,0.0004722,60]
[407813333,1772814802370,-50000.0,0.0004722,50]
[407813334,1772814802380,-270.3642315,0.0004722,120]
[407813335,1772814802389,-201.15009953,0.0004722,120]
[407813336,1772814802399,-1001.70757151,0.0004722,120]
[407813337,1772814802408,-215.19599029,0.0004722,30]
[407813338,1772814802418,-251.81122291,0.0004722,120]
[407813339,1772814802428,-943.54379047,0.0004722,30]
[407813340,1772814802438,-782.37795383,0.0004722,120]
[407813341,1772814802448,-437.93216648,0.0004722,30]
[407813342,1772814802460,-365.568479,0.0004722,30]
[407813343,1772814802470,-7493.87816716,0.0004722,30]
[407813344,1772814802479,-286.80176859,0.0004722,30]
[407813345,1772814802488,-863.46312837,0.0004722,120]
[407813346,1772814802498,-399.82481962,0.0004722,30]
[407813347,1772814802507,-441.75981765,0.0004722,30]
[407813348,1772814802517,-5035.84296735,0.0004722,30]
[407813349,1772814802526,-372.86840289,0.0004722,120]
[407813350,1772814802536,-615.46793473,0.0004722,120]
[407813351,1772814802545,-2883.54075594,0.0004722,30]
[407813352,1772814802555,-587.92402644,0.0004722,120]
[407813353,1772814802564,-1609.13729026,0.0004722,120]
[407813354,1772814802574,-1734.28282152,0.0004722,120]
[407813355,1772814802584,-230.96016828,0.0004722,120]
[407813356,1772814802594,-8301.18961951,0.0004722,30]
[407813357,1772814802605,-960.01355674,0.0004722,30]
[407813358,1772814802615,-485.3718093,0.0004722,120]
[407813359,1772814802625,-775.74348075,0.0004722,120]
[407813360,1772814802636,-378.41025968,0.0004722,30]
[407813361,1772814802648,-208.54693739,0.0004722,120]
[407813362,1772814802657,-756.0,0.0004722,120]
[407813363,1772814802666,-366.90442384,0.0004722,120]
[407813364,1772814802677,-289.44372734,0.0004722,120]
[407813365,1772814802687,-1083.45446872,0.0004722,120]
[407813366,1772814802698,-198.28195244,0.0004722,120]
[407813367,1772814802712,-523.20567201,0.0004722,120]
[407813368,1772814802723,-9795.10632507,0.0004722,30]
[407813369,1772814802732,-182.67618453,0.0004722,120]
[407813370,1772814802741,-845.78489672,0.0004722,120]
[407813371,1772814802751,-1355.04495028,0.0004722,30]
[407813372,1772814802762,-558.43499798,0.0004722,120]
[407813373,1772814802772,-588.19303737,0.0004722,120]
[407813374,1772814802781,-2335.21479722,0.0004722,30]
[407813375,1772814802791,-655.9300082,0.0004722,120]
[407813376,1772814802800,-4957.15231015,0.0004722,120]
[407813377,1772814802810,-401.0087368,0.0004722,120]
[407813378,1772814802820,-3156.22927587,0.0004722,30]
[407813379,1772814802829,-366.06695112,0.0004722,120]
[407813380,1772814802839,-1120.27555364,0.0004722,120]
[407813381,1772814802848,-682.97019498,0.0004722,30]
[407813382,1772814802858,-714.04152468,0.0004722,120]
[407813383,1772814802868,-601.76116325,0.0004722,120]
[407813384,1772814802878,-1068.42793184,0.0004722,120]
[407813385,1772814802887,-198.99859583,0.0004722,120]
[407813386,1772814802897,-771.50433977,0.0004722,30]
[407813387,1772814802907,-6791.98309503,0.0004722,30]
[407813388,1772814802917,-889.22375607,0.0004722,120]
[407813389,1772814802927,-275.30707951,0.0004722,120]
[407813390,1772814802938,-394.99404844,0.0004722,120]
[407813391,1772814802948,-597.02623407,0.0004722,120]
[407813392,1772814802962,-1214.97652052,0.0004722,30]
[407813393,1772814802972,-277.64642972,0.0004722,120]
[407813394,1772814802983,-487.4910338,0.0004722,60]
[407813395,1772814802992,-4224.53037918,0.0004722,30]
[407813396,1772814803002,-473.18434674,0.0004722,120]
[407813397,1772814803012,-436.35738677,0.0004722,120]
[407813398,1772814803022,-1114.04179597,0.0004722,120]
[407813399,1772814803031,-483.34090831,0.0004722,120]
[407813400,1772814803041,-499.67395077,0.0004722,30]
[407813401,1772814803051,-500.0,0.0004722,120]
[407813402,1772814803061,-615.73694114,0.0004722,30]
[407813403,1772814803071,-266.99810897,0.0004722,120]
[407813404,1772814803081,-802.85833846,0.0004722,120]
[407813405,1772814803091,-1182.40718703,0.0004722,120]
[407813406,1772814803102,-653.71041453,0.0004722,120]
[407813407,1772814803111,-647.80907087,0.0004722,120]
[407813408,1772814803121,-601.12677641,0.0004722,120]
[407813409,1772814803132,-850.49422344,0.0004722,30]
[407813410,1772814803142,-329.44584629,0.0004722,120]
[407813411,1772814803153,-316.53397242,0.0004722,120]
[407813412,1772814803165,-188.51504789,0.0004722,30]
[407813413,1772814803176,-714.84105308,0.0004722,120]
[407813414,1772814803187,-232.25002096,0.0004722,120]
[407813415,1772814803197,-202.4885699,0.0004722,120]
[407813416,1772814803211,-1000.0,0.0004722,30]
[407813417,1772814803220,-2053.4040341,0.0004722,30]
[407813418,1772814803230,-487.06627877,0.0004722,120]
[407813419,1772814803240,-509.27920672,0.0004722,120]
[407813420,1772814803250,-157.50676559,0.0004722,120]
[407813421,1772814803259,-954.16070251,0.0004722,30]
[407813422,1772814803269,-172.71544598,0.0004722,60]
[407813423,1772814803279,-644.28972635,0.0004722,30]
[407813424,1772814803289,-191.30257368,0.0004722,60]
[407813425,1772814803298,-561.0,0.0004722,120]
[407813426,1772814803309,-2302.1073392,0.0004722,60]
[407813427,1772814803318,-1000200.00999993,0.0004722,60]
[407813428,1772814803328,-1109.0,0.0004722,30]
[407813429,1772814803337,-1109.0,0.0004722,30]
[407813430,1772814803348,-1109.0,0.0004722,30]
[407813431,1772814803358,-1109.0,0.0004722,30]
[407813432,1772814803368,-1109.0,0.0004722,30]
[407813433,1772814803378,-1109.0,0.0004722,30]
[407813434,1772814803388,-1109.0,0.0004722,30]
[407813435,1772814803397,-1109.0,0.0004722,30]
[407813436,1772814803407,-1109.0,0.0004722,30]
[407813437,1772814803417,-1109.0,0.0004722,30]
[407813438,1772814803426,-1109.0,0.0004722,30]
[407813439,1772814803435,-1109.0,0.0004722,30]
[407813440,1772814803445,-1109.0,0.0004722,30]
[407813441,1772814803455,-1109.0,0.0004722,30]
[407813442,1772814803468,-1109.0,0.0004722,30]
[407813443,1772814803477,-1109.0,0.0004722,30]
[407813444,1772814803487,-1109.0,0.0004722,30]
[407813445,1772814803497,-1109.0,0.0004722,30]
[407813446,1772814803506,-861.54344162,0.0004722,30]
[407813447,1772814803516,-1109.0,0.0004722,30]
[407813448,1772814803526,-500.0,0.0004722,120]
[407813449,1772814803536,-500.0,0.0004722,120]
[407813450,1772814803546,-1000.0,0.0004722,120]
[407813451,1772814803555,-1000.0,0.0004722,120]
[407813452,1772814803564,-500.0,0.0004722,120]
[407813453,1772814803574,-500.0,0.0004722,120]
[407813454,1772814803583,-500.0,0.0004722,120]
[407813455,1772814803593,-1000.0,0.0004722,120]
[407813456,1772814803603,-500.0,0.0004722,120]
[407813457,1772814803612,-500.0,0.0004722,120]
[407813458,1772814803622,-500.0,0.0004722,120]
[407813459,1772814803631,-500.0,0.0004722,120]
[407813460,1772814803641,-546.11,0.0004722,120]
[407813461,1772814803650,-1596.37483273,0.0004722,120]
[407813462,1772814803660,-560.2,0.0004722,120]
[407813463,1772814803670,-2338.44776152,0.0004722,30]
[407813464,1772814803682,-1218.81450773,0.0004722,120]
[407813465,1772814803694,-404459.01329272,0.0004722,30]
[407813466,1772814803978,-192.23771476,0.00014097,2]
[407813467,1772814803989,-192.23771476,0.0001789,2]
[407813468,1772814803999,-192.23771476,0.0001999,2]
[407813469,1772814804009,-11053.57,0.00027397,10]
[407813470,1772814804019,-253.64402093,0.00046028,120]
[407813471,1772814804029,-71482.70057514,0.0004722,30]
[407813472,1772814804042,-23997.25577326,0.0004722,30]
[407813473,1772814804052,-12750.0,0.0004722,60]
[407813474,1772814804061,-40243.71245686,0.0004722,60]
[407813475,1772814804502,-11487.51571616,0.0004722,60]
[407813476,1772814804512,-3488.90518646,0.0004722,120]
[407813477,1772814804522,-852.81135616,0.0004722,120]
[407813478,1772814804532,-2502.1920382,0.0004722,120]
[407813479,1772814804542,-71241.86528753,0.0004722,30]
[407813480,1772814804551,-15444.90139635,0.0004722,30]
[407813481,1772814804563,-150.0,0.0004722,120]